[Event "LEM Niedersachsen-A-Open 2025"]
[Site "Verden"]
[Date "2025.01.05"]
[Round "7.27"]
[White "Schramm, Kilian"]
[Black "Seer, Maurice"]
[Result "1-0"]
[ECO "C27"]
[WhiteElo "1834"]
[BlackElo "1911"]
[Annotator "RC"]
[PlyCount "111"]
[EventDate "2024.12.27"]
[EventType "swiss"]
[EventCountry "GER"]
[SourceTitle "playchess.com"]
[Source "ChessBase"]
[SourceQuality "1"]
[TimeControl "40/5400+30:1800+30"]

1. e4 {[%emt 0:00:05]} e5 {[%emt 0:00:13]} 2. Bc4 {[%emt 0:00:16]} Nf6 {[%emt 0:00:48]} 3. d3 {[%emt 0:02:32]} Bc5 {[%emt 0:01:41]} 4. Nc3 {[%emt 0:00:23]} O-O {[%emt 1:29:48]} 5. f4 {[%emt 0:03:22]} d5 {[%emt 0:00:00]} 6. exd5 {[%emt 1:26:52]} exf4 {[%emt 0:00:00]} 7. Bxf4 {[%emt 0:00:00]} Re8+ {[%emt 0:00:00]} 8. Nge2 {[%emt 0:00:00]} Bg4 {[%emt 0:00:00]} 9. d4 {[%emt 0:00:00]} Bb4 {[%emt 0:00:00]} 10. O-O {[%emt 0:00:00]} Bxc3 {[%emt 0:00:00]} 11. bxc3 {[%emt 0:00:00]} Nxd5 {[%emt 0:00:00]} 12. Qd2 {[%emt 0:00:00]} Bxe2 {[%emt 0:00:00]} 13. Bxe2 {[%emt 0:00:00]} Nxc3 {[%emt 0:00:00]} 14. Qxc3 {[%emt 0:00:00]} Rxe2 {[%emt 0:00:00]} 15. Bxc7 {[%emt 0:00:00]} Qd5 {[%emt 0:00:00]} 16. Rf2 {[%emt 0:00:00]} Rxf2 {[%emt 0:00:00]} 17. Kxf2 {[%emt 0:00:00]} Nc6 {[%emt 0:00:00]} 18. Rd1 {[%emt 0:00:00]} Rc8 {[%emt 0:00:00]} 19. Bf4 {[%emt 0:00:00]} Qf5 {[%emt 0:00:00]} 20. Qg3 {[%emt 0:00:00]} Nb4 {[%emt 0:00:00]} 21. Kg1 {[%emt 0:00:00]} Nxc2 {[%emt 0:00:00]} 22. d5 {[%emt 0:00:00]} Nb4 {[%emt 0:00:12]} 23. d6 {[%emt 0:00:00]} Rd8 {[%emt 0:01:30]} 24. Bh6 {[%emt 0:00:00]} Qg6 {[%emt 0:01:55]} 25. Bg5 {[%emt 0:00:00]} f6 {[%emt 0:02:41]} 26. Qb3+ {[%emt 0:00:00]} Qf7 {[%emt 0:00:22]} 27. Qxb4 {[%emt 0:00:00]} fxg5 {[%emt 0:00:09]} 28. Qa5 {[%emt 0:00:00]} b6 {[%emt 0:01:10]} 29. Qxg5 {[%emt 0:00:00]} Rd7 {[%emt 0:00:51]} 30. Qe5 {[%emt 0:00:00]} Rd8 {[%emt 0:01:16]} 31. Rf1 {[%emt 0:00:00]} Qd7 {[%emt 0:01:25]} 32. Qd5+ {[%emt 0:00:00]} Kh8 {[%emt 0:00:32]} 33. Rf7 {[%emt 0:00:00]} Qe8 {[%emt 0:01:12]} 34. Re7 {[%emt 0:00:00]} Qg6 {[%emt 0:00:15]} 35. Rxa7 {[%emt 0:04:13]} Qb1+ {[%emt 0:00:41]} 36. Kf2 {[%emt 0:00:08]} Rf8+ {[%emt 0:00:24]} 37. Rf7 {[%emt 0:00:46]} Qc2+ {[%emt 0:00:57]} 38. Ke3 {[%emt 0:00:44]} Re8+ {[%emt 0:00:51]} 39. Re7 {[%emt 0:00:06]} Qc1+ {[%emt 0:00:32]} 40. Ke2 {[%emt 0:02:26]} Qc2+ {[%emt 0:00:30]} 41. Qd2 {[%emt 0:31:00]} Qc4+ {[%emt 0:06:47]} 42. Ke1 {[%emt 0:00:00]} Rf8 {[%emt 0:02:05]} 43. Re2 {[%emt 0:00:00]} Qh4+ {[%emt 0:04:01]} 44. g3 {[%emt 0:00:00]} Qh3 {[%emt 0:00:49]} 45. Qf4 {[%emt 0:00:00]} Qc8 {[%emt 0:01:22]} 46. d7 {[%emt 0:00:00]} Qc3+ {[%emt 0:00:49]} 47. Rd2 {[%emt 0:00:00]} Rd8 {[%emt 0:01:46]} 48. Qe4 {[%emt 0:00:00]} Rf8 {[%emt 0:02:56]} 49. Qf4 {[%emt 0:00:00]} Rd8 {[%emt 0:00:44]} 50. Ke2 {[%emt 0:00:00]} h6 {[%emt 0:01:30]} 51. Qe4 {[%emt 0:00:00]} Qf6 {[%emt 0:01:03]} 52. Rc2 {[%emt 0:00:00]} Qf8 {[%emt 0:03:50]} 53. Qe6 {[%emt 0:00:00]} Kh7 {[%emt 0:03:28]} 54. Rc8 {[%emt 0:00:00]} b5 {[%emt 0:02:08]} 55. Rxd8 {[%emt 0:00:00]} Qxd8 {[%emt 0:00:11]} 56. Qe8 {[%emt 0:00:00]} 1-0

[Event "LEM Niedersachsen-A-Open 2025"]
[Site "Verden"]
[Date "2025.01.05"]
[Round "7.28"]
[White "Lehmkuhl, Stefan"]
[Black "Loecken, Siegfried"]
[Result "0-1"]
[ECO "A65"]
[WhiteElo "1874"]
[BlackElo "2004"]
[Annotator "RC"]
[PlyCount "90"]
[EventDate "2024.12.27"]
[EventType "swiss"]
[EventCountry "GER"]
[SourceTitle "playchess.com"]
[Source "ChessBase"]
[SourceQuality "1"]
[TimeControl "40/5400+30:1800+30"]

1. d4 {[%emt 0:00:39]} Nf6 {[%emt 0:00:05]} 2. c4 {[%emt 0:00:48]} c5 {[%emt 0:00:05]} 3. d5 {[%emt 0:00:57]} e6 {[%emt 0:00:02]} 4. Nc3 {[%emt 0:00:39]} exd5 {[%emt 0:00:02]} 5. cxd5 {[%emt 0:00:13]} d6 {[%emt 0:00:01]} 6. e4 {[%emt 0:00:45]} g6 {[%emt 0:00:03]} 7. Bd3 {[%emt 0:00:46]} Bg7 {[%emt 0:00:07]} 8. Nge2 {[%emt 0:00:09]} O-O {[%emt 0:00:04]} 9. O-O {[%emt 0:02:45]} a6 {[%emt 0:00:10]} 10. a4 {[%emt 0:00:51]} Re8 {[%emt 0:00:22]} 11. h3 {[%emt 0:00:36]} Nbd7 {[%emt 0:00:13]} 12. Ng3 {[%emt 0:02:21]} Qc7 {[%emt 0:01:35]} 13. Bf4 {[%emt 0:06:36]} Rb8 {[%emt 0:01:26]} 14. Re1 {[%emt 0:02:52]} Ne5 {[%emt 0:00:10]} 15. Bf1 {[%emt 0:00:43]} Bd7 {[%emt 0:01:13]} 16. a5 {[%emt 0:02:10]} b5 {[%emt 0:01:12]} 17. axb6 {[%emt 0:00:24]} Rxb6 {[%emt 0:00:01]} 18. Bc1 {[%emt 0:00:40]} Bb5 {[%emt 0:00:33]} 19. f4 {[%emt 0:06:43]} Ned7 {[%emt 0:00:49]} 20. Qf3 {[%emt 0:02:57]} h5 {[%emt 0:03:57]} 21. Nge2 {[%emt 0:03:27]} Bc4 {[%emt 0:00:50]} 22. g4 {[%emt 0:01:52]} hxg4 {[%emt 0:00:21]} 23. hxg4 {[%emt 0:00:12]} Rb3 {[%emt 0:00:04]} 24. Ng3 {[%emt 0:01:37]} Bxf1 {[%emt 0:02:09]} 25. Nxf1 {[%emt 0:02:04]} Qb7 {[%emt 0:00:27]} 26. Ng3 {[%emt 0:04:16]} Nb6 {[%emt 0:00:14]} 27. Qf1 {[%emt 0:01:12]} Nxg4 {[%emt 0:00:58]} 28. Qxa6 {[%emt 0:00:40]} Qe7 {[%emt 0:05:00]} 29. Kg2 {[%emt 0:01:58]} Bxc3 {[%emt 0:01:32]} 30. bxc3 {[%emt 0:00:23]} Ra8 {[%emt 0:00:01]} 31. Qxb6 {[%emt 0:01:18]} Rxb6 {[%emt 0:00:18]} 32. Rxa8+ {[%emt 0:00:09]} Kg7 {[%emt 0:00:39]} 33. Kf3 {[%emt 0:02:08]} Nf6 {[%emt 0:00:28]} 34. c4 {[%emt 0:01:11]} Rb3+ {[%emt 0:02:26]} 35. Kg2 {[%emt 0:00:47]} Nh5 {[%emt 0:02:36]} 36. Re3 {[%emt 0:02:09]} Rxe3 {[%emt 0:02:16]} 37. Bxe3 {[%emt 0:00:18]} Nxg3 {[%emt 0:00:12]} 38. Kxg3 {[%emt 0:00:12]} Qxe4 {[%emt 0:00:30]} 39. Kf2 {[%emt 0:00:06]} Qxc4 {[%emt 0:00:47]} 40. Ra1 {[%emt 0:00:41]} Qxd5 {[%emt 0:00:52]} 41. Re1 {[%emt 0:30:27]} Kf6 {[%emt 0:30:33]} 42. Rg1 {[%emt 0:00:19]} Qd3 {[%emt 0:01:05]} 43. f5 {[%emt 0:00:20]} Qxf5+ {[%emt 0:01:02]} 44. Ke2 {[%emt 0:00:04]} Qc2+ {[%emt 0:00:22]} 45. Ke1 {[%emt 0:00:03]} d5 {[%emt 0:00:39]} 0-1

[Event "LEM Niedersachsen-A-Open 2025"]
[Site "Verden"]
[Date "2025.01.05"]
[Round "7.29"]
[White "Lieb, Max"]
[Black "Bisa, Gani"]
[Result "1-0"]
[ECO "A50"]
[WhiteElo "1791"]
[BlackElo "1885"]
[Annotator "NA RC"]
[PlyCount "73"]
[EventDate "2024.12.27"]
[EventType "swiss"]
[EventCountry "GER"]
[SourceTitle "playchess.com"]
[Source "ChessBase"]
[SourceQuality "1"]
[TimeControl "40/5400+30:1800+30"]

1. d4 {[%emt 0:00:03]} Nf6 {[%emt 0:00:06]} 2. c4 {[%emt 0:00:07]} e6 {[%emt 0:00:08]} 3. Nf3 {[%emt 0:00:09]} b6 {[%emt 0:00:05]} 4. g3 {[%emt 0:00:24]} Bb7 {[%emt 0:00:06]} 5. Bg2 {[%emt 0:00:16]} g6 {[%emt 0:00:16]} 6. O-O {[%emt 0:05:13]} Bg7 {[%emt 0:00:07]} 7. Nc3 {[%emt 0:01:21]} O-O {[%emt 0:00:15]} 8. b3 {[%emt 0:08:29]} c5 {[%emt 0:04:36]} 9. e3 {[%emt 0:05:43]} Na6 {[%emt 0:06:04]} 10. Bb2 {[%emt 0:08:15]} Nc7 {[%emt 0:03:06]} 11. Qe2 {[%emt 0:05:52]} d5 {[%emt 0:03:46]} 12. dxc5 {[%emt 0:03:32]} bxc5 {[%emt 0:00:28]} 13. Rfd1 {[%emt 0:01:29]} Qc8 {[%emt 0:00:27]} 14. cxd5 {[%emt 0:11:26]} exd5 {[%emt 0:03:44]} 15. Rac1 {[%emt 0:02:08]} Rb8 {[%emt 0:07:10]} 16. Na4 {[%emt 0:08:54]} Ba6 {[%emt 0:00:15]} 17. Qc2 {[%emt 0:01:04]} c4 {[%emt 0:00:22]} 18. bxc4 {[%emt 0:00:54]} Bxc4 {[%emt 0:00:39]} 19. Ne5 {[%emt 0:06:52]} Bb5 {[%emt 0:08:43]} 20. Nc3 {[%emt 0:08:34]} Qe6 {[%emt 0:03:39]} 21. Nxb5 {[%emt 0:01:27]} Rxb5 {[%emt 0:02:23]} 22. Ba3 {[%emt 0:02:52]} Rc8 {[%emt 0:01:43]} 23. Nc6 {[%emt 0:01:07]} Re8 {[%emt 0:22:02]} 24. Ne7+ {[%emt 0:02:47]} Kh8 {[%emt 0:04:44]} 25. Qxc7 {[%emt 0:01:00]} Bf8 {[%emt 0:00:26]} 26. Nxg6+ {[%emt 0:01:38]} hxg6 {[%emt 0:00:42]} 27. Bxf8 {[%emt 0:00:18]} Rxf8 {[%emt 0:00:47]} 28. Qxa7 {[%emt 0:01:13]} Rfb8 {[%emt 0:01:11]} 29. a4 {[%emt 0:02:01]} R5b7 {[%emt 0:02:50]} 30. Qd4 {[%emt 0:00:54]} Rb4 {[%emt 0:00:28]} 31. Qa1 {[%emt 0:00:55]} Qa6 {[%emt 0:02:50]} 32. a5 {[%emt 0:01:14]} Ra8 {[%emt 0:02:56]} 33. Bxd5 {[%emt 0:00:47]} Rd8 {[%emt 0:03:09]} 34. Rc6 {[%emt 0:03:07]} Qa8 {[%emt 0:03:49]} 35. Qxf6+ {[%emt 0:05:55]} Kh7 {[%emt 0:01:42]} 36. Qxf7+ {[%emt 0:00:00]} Kh8 {[%emt 0:00:09]} 37. Qf6+ {[%emt 0:00:00]} 1-0

[Event "LEM Niedersachsen-A-Open 2025"]
[Site "Verden"]
[Date "2025.01.05"]
[Round "7.30"]
[White "Direk, Oguzhan"]
[Black "Harms, Friedjof"]
[Result "1-0"]
[ECO "D00"]
[WhiteElo "1838"]
[BlackElo "1884"]
[Annotator "NA RC"]
[PlyCount "147"]
[EventDate "2024.12.27"]
[EventType "swiss"]
[EventCountry "GER"]
[SourceTitle "playchess.com"]
[Source "ChessBase"]
[SourceQuality "1"]
[TimeControl "40/5400+30:1800+30"]

1. d4 {[%emt 0:00:54]} Nf6 {[%emt 0:00:04]} 2. Nc3 {[%emt 0:00:08]} d5 {[%emt 0:00:05]} 3. Bf4 {[%emt 0:00:28]} e6 {[%emt 0:00:09]} 4. Nb5 {[%emt 0:00:04]} Na6 {[%emt 0:00:09]} 5. e3 {[%emt 0:00:03]} c6 {[%emt 0:00:16]} 6. Nc3 {[%emt 0:00:10] D00: 1 d4 d5: Unusual lines.} Qb6 {[%emt 0:00:18]} 7. a3 {[%emt 0:00:16]} c5 {[%emt 0:00:54]} 8. Nf3 {[%emt 0:05:22]} Be7 {[%emt 0:03:11]} 9. Be2 {[%emt 0:00:15]} O-O {[%emt 0:01:09]} 10. O-O {[%emt 0:00:09]} Bd7 {[%emt 0:03:41]} 11. Qd2 {[%emt 1:28:11]} Rfc8 {[%emt 0:01:00]} 12. Rab1 {[%emt 0:00:00]} Be8 {[%emt 0:04:22]} 13. h3 {[%emt 0:00:00]} Nc7 {[%emt 0:09:41]} 14. Ne5 {[%emt 0:00:00]} c4 {[%emt 1:12:31]} (14... Nb5 $11) 15. b3 $1 {[%emt 0:00:00]} Bxa3 {[%emt 0:00:00]} 16. bxc4 {[%emt 0:00:00]} Bb4 {[%emt 0:00:00]} 17. Nd3 {[%emt 0:00:00]} Ne4 {[%emt 0:00:00]} 18. Nxe4 {[%emt 0:00:00]} Bxd2 {[%emt 0:02:00]} 19. Rxb6 {[%emt 0:00:00]} dxe4 {[%emt 0:00:00]} 20. Rxb7 {[%emt 0:00:00]} exd3 {[%emt 0:00:00]} 21. Bxd3 {[%emt 0:00:00]} Na6 {[%emt 0:00:00]} 22. Rd1 {[%emt 0:00:00]} Bc6 {[%emt 0:00:00]} 23. Rb3 {[%emt 0:00:00]} Nc5 {[%emt 0:00:00]} 24. dxc5 {[%emt 0:00:00]} Ba5 {[%emt 0:00:00]} 25. Ra1 {[%emt 0:00:00]} Bc7 {[%emt 0:00:00]} 26. Rba3 {[%emt 0:00:00]} Bxf4 {[%emt 0:00:00]} 27. exf4 {[%emt 0:00:00]} Rc7 {[%emt 0:00:00]} 28. Ra6 {[%emt 0:00:00]} f5 {[%emt 0:00:00]} 29. f3 {[%emt 0:00:00]} Kf7 {[%emt 0:00:00]} 30. Kf2 {[%emt 0:00:00]} Kf6 {[%emt 0:00:00]} 31. Ke3 {[%emt 0:00:00]} g6 {[%emt 0:00:00]} 32. g4 {[%emt 0:00:00]} Kf7 {[%emt 0:00:16]} 33. g5 {[%emt 0:00:00]} Ke7 {[%emt 0:02:11]} 34. R1a5 {[%emt 0:00:00]} Kf7 {[%emt 0:01:49]} 35. Kd4 {[%emt 0:00:00]} Ke7 {[%emt 0:00:31]} 36. Ke5 {[%emt 0:00:00]} Bd7 {[%emt 0:01:14]} 37. h4 {[%emt 0:00:00]} Bc6 {[%emt 0:01:50]} 38. Be2 {[%emt 0:00:00]} Bd7 {[%emt 0:00:22]} 39. c6 {[%emt 0:00:00]} Bxc6 {[%emt 0:01:32]} 40. c5 {[%emt 0:00:00]} Bd5 {[%emt 0:00:37]} 41. Rd6 {[%emt 0:13:02]} Rb8 {[%emt 0:05:52]} 42. c4 {[%emt 0:00:00]} Rb2 {[%emt 0:01:15]} 43. Bd3 {[%emt 0:00:00]} Bxf3 {[%emt 0:11:51]} 44. Rxe6+ {[%emt 0:00:00]} Kf7 {[%emt 0:00:16]} 45. Rea6 {[%emt 0:00:00]} Rbb7 {[%emt 0:01:19]} 46. c6 {[%emt 0:00:00]} Rb6 {[%emt 0:00:29]} 47. Rxa7 {[%emt 0:00:00]} Rbxc6 {[%emt 0:00:29]} 48. Rxc7+ {[%emt 0:00:00]} Rxc7 {[%emt 0:00:01]} 49. c5 {[%emt 0:00:00]} Ke7 {[%emt 0:03:04]} 50. Bc4 {[%emt 0:00:00]} Bc6 {[%emt 0:03:18]} 51. Bd5 {[%emt 0:00:00]} Bd7 {[%emt 0:01:28]} 52. c6 {[%emt 0:00:00]} Bxc6 {[%emt 0:00:35]} 53. Bxc6 {[%emt 0:00:00]} Rxc6 {[%emt 0:00:05]} 54. Ra7+ {[%emt 0:00:00]} Kf8 {[%emt 0:00:16]} 55. Rxh7 {[%emt 0:00:00]} Rc5+ {[%emt 0:00:26]} 56. Kd4 {[%emt 0:00:00]} Rc1 {[%emt 0:02:04]} 57. h5 {[%emt 0:00:00]} Re1 {[%emt 0:00:57]} 58. hxg6 {[%emt 0:00:00]} Re4+ {[%emt 0:00:08]} 59. Kd5 {[%emt 0:00:00]} Rxf4 {[%emt 0:00:13]} 60. Ke5 {[%emt 0:00:00]} Ra4 {[%emt 0:00:52]} 61. Kxf5 {[%emt 0:00:00]} Ra5+ {[%emt 0:00:57]} 62. Kg4 {[%emt 0:00:00]} Kg8 {[%emt 0:01:06]} 63. Rb7 {[%emt 0:00:00]} Ra4+ {[%emt 0:00:39]} 64. Kh5 {[%emt 0:00:00]} Ra8 {[%emt 0:01:13]} 65. Kh6 {[%emt 0:00:00]} Rc8 {[%emt 0:00:15]} 66. Rg7+ {[%emt 0:00:00]} Kh8 {[%emt 0:00:14]} 67. Rf7 {[%emt 0:00:00]} Kg8 {[%emt 0:00:09]} 68. Rf6 {[%emt 0:00:00]} Rc7 {[%emt 0:00:53]} 69. Ra6 {[%emt 0:00:00]} Rc8 {[%emt 0:00:21]} 70. g7 {[%emt 0:00:00]} Rb8 {[%emt 0:00:19]} 71. Rf6 {[%emt 0:00:00]} Rd8 {[%emt 0:01:34]} 72. Rf8+ {[%emt 0:00:00]} Rxf8 {[%emt 0:00:06]} 73. gxf8=R+ {[%emt 0:00:00]} Kxf8 {[%emt 0:00:16]} 74. Kh7 {[%emt 0:00:00]} 1-0

[Event "LEM Niedersachsen-A-Open 2025"]
[Site "Verden"]
[Date "2025.01.05"]
[Round "7.31"]
[White "Burnus, Finn Crispin"]
[Black "Schulze, Tim"]
[Result "1/2-1/2"]
[ECO "D31"]
[WhiteElo "1883"]
[BlackElo "1804"]
[Annotator "NA RC"]
[PlyCount "42"]
[EventDate "2024.12.27"]
[EventType "swiss"]
[EventCountry "GER"]
[SourceTitle "playchess.com"]
[Source "ChessBase"]
[SourceQuality "1"]
[TimeControl "40/5400+30:1800+30"]

1. d4 {[%emt 0:00:06]} d5 {[%emt 0:00:30]} 2. c4 {[%emt 0:00:17]} e6 {[%emt 0:00:05]} 3. Nf3 {[%emt 0:00:05]} c6 {[%emt 0:00:56]} 4. Nc3 {[%emt 0:00:13]} dxc4 {[%emt 0:00:05]} 5. a4 {[%emt 0:00:05]} Bb4 {[%emt 0:00:20]} 6. e3 {[%emt 0:00:34]} b5 {[%emt 0:00:19]} 7. Bd2 {[%emt 0:02:16]} a5 {[%emt 0:01:51]} 8. axb5 {[%emt 0:00:55]} Bxc3 {[%emt 0:00:23]} 9. Bxc3 {[%emt 0:00:51]} cxb5 {[%emt 0:00:08]} 10. b3 {[%emt 0:03:03]} Bb7 {[%emt 0:00:11]} 11. bxc4 {[%emt 0:00:11]} b4 {[%emt 0:00:01]} 12. Bd2 {[%emt 0:04:17]} Nf6 {[%emt 0:01:49]} 13. Bd3 {[%emt 0:00:26]} O-O {[%emt 0:00:24]} 14. O-O {[%emt 0:00:19]} Nbd7 {[%emt 0:02:30]} 15. Bc2 {[%emt 0:07:40]} Qc7 {[%emt 0:03:01]} 16. Bb3 {[%emt 0:00:26]} Rfb8 {[%emt 0:00:38]} 17. Qc2 {[%emt 0:05:02]} Ng4 {[%emt 0:07:24]} 18. e4 $15 {[%emt 0:03:59]} f5 {[%emt 0:01:47]} 19. d5 {[%emt 0:01:21]} Nc5 {[%emt 0:02:53]} 20. exf5 {[%emt 0:02:27]} Nxb3 {[%emt 0:02:01]} 21. Qxb3 {[%emt 0:00:21]} exd5 {[%emt 0:01:27]} 1/2-1/2

[Event "LEM Niedersachsen-A-Open 2025"]
[Site "Verden"]
[Date "2025.01.05"]
[Round "7.32"]
[White "Beckmann, Jonathan"]
[Black "Buecklers, Martin"]
[Result "1-0"]
[ECO "B15"]
[WhiteElo "1812"]
[BlackElo "1859"]
[Annotator "NA RC"]
[PlyCount "71"]
[EventDate "2024.12.27"]
[EventType "swiss"]
[EventCountry "GER"]
[SourceTitle "playchess.com"]
[Source "ChessBase"]
[SourceQuality "1"]
[TimeControl "40/5400+30:1800+30"]

1. d4 {[%emt 0:00:02]} g6 {[%emt 0:00:05]} 2. e4 {[%emt 0:00:05]} Bg7 {[%emt 0:00:04]} 3. Nc3 {[%emt 0:00:10]} c6 {[%emt 0:00:06]} 4. f4 {[%emt 0:03:12]} d5 {[%emt 0:00:19]} 5. e5 {[%emt 0:02:12]} h5 {[%emt 0:00:06]} 6. Nf3 {[%emt 0:04:36]} Bg4 {[%emt 0:00:36]} 7. h3 {[%emt 0:05:17]} Bxf3 {[%emt 0:00:06]} 8. Qxf3 {[%emt 0:00:06]} Qb6 {[%emt 0:00:22]} 9. Qd3 {[%emt 0:10:19]} Nh6 {[%emt 0:06:53]} 10. Be3 {[%emt 0:03:46]} Nf5 {[%emt 0:02:35]} 11. Bf2 {[%emt 0:16:37]} e6 {[%emt 0:02:41]} 12. Be2 {[%emt 0:02:03]} Na6 {[%emt 0:05:47]} 13. O-O {[%emt 0:03:27]} h4 {[%emt 0:04:59]} 14. a3 {[%emt 0:04:45]} Bf8 {[%emt 0:04:21]} 15. b4 {[%emt 0:02:41]} Nc7 {[%emt 0:04:16]} 16. Rfb1 $16 {[%emt 0:04:56]} a6 {[%emt 0:07:15]} 17. a4 {[%emt 0:01:46]} Kd7 {[%emt 0:01:03]} 18. Rb3 {[%emt 0:03:14]} Qa7 {[%emt 0:04:28]} 19. Rab1 {[%emt 0:01:57]} b5 {[%emt 0:01:45]} 20. Ra1 {[%emt 0:02:28]} Qb7 {[%emt 0:00:16]} 21. Nd1 {[%emt 0:02:38]} Be7 {[%emt 0:05:42]} 22. Qd2 {[%emt 0:04:46]} Rhg8 {[%emt 0:01:23]} 23. Ne3 {[%emt 0:02:08]} Nxe3 {[%emt 0:02:49]} 24. Qxe3 {[%emt 0:00:24]} Ne8 {[%emt 0:00:28]} 25. Qd2 {[%emt 0:04:14]} Ng7 {[%emt 0:01:06]} 26. Rba3 {[%emt 0:00:38]} a5 {[%emt 0:04:44]} 27. c3 {[%emt 0:01:30]} bxa4 {[%emt 0:04:17]} 28. Rxa4 {[%emt 0:00:12]} axb4 {[%emt 0:01:01]} 29. cxb4 {[%emt 0:00:21]} Rxa4 {[%emt 0:01:02]} 30. Rxa4 {[%emt 0:00:05]} Rb8 {[%emt 0:03:24]} 31. Be1 {[%emt 0:01:40]} Ra8 {[%emt 0:07:53]} 32. Qa2 {[%emt 0:02:32]} Rxa4 {[%emt 0:00:07]} 33. Qxa4 {[%emt 0:00:04]} Nf5 {[%emt 0:00:56]} 34. b5 {[%emt 0:12:39]} c5 {[%emt 0:01:34]} 35. b6+ {[%emt 0:00:00]} Kd8 {[%emt 0:01:41]} 36. Qa7 {[%emt 0:00:00]} 1-0

[Event "LEM Niedersachsen-A-Open 2025"]
[Site "Verden"]
[Date "2025.01.05"]
[Round "7.33"]
[White "Kiesel, Lara"]
[Black "Goertzen, Simon"]
[Result "1/2-1/2"]
[ECO "A13"]
[WhiteElo "1825"]
[BlackElo "1887"]
[Annotator "NA RC"]
[PlyCount "194"]
[EventDate "2024.12.27"]
[EventType "swiss"]
[EventCountry "GER"]
[SourceTitle "playchess.com"]
[Source "ChessBase"]
[SourceQuality "1"]
[TimeControl "40/5400+30:1800+30"]

1. Nf3 {[%emt 0:00:08]} Nf6 {[%emt 0:00:05]} 2. b3 {[%emt 0:00:10]} c5 {[%emt 0:00:07]} 3. Bb2 {[%emt 0:00:13]} Nc6 {[%emt 0:00:06]} 4. c4 {[%emt 0:02:04]} e6 {[%emt 0:02:18]} 5. e3 {[%emt 0:05:50]} Be7 {[%emt 0:01:00]} 6. Be2 {[%emt 0:00:48]} O-O {[%emt 0:00:06]} 7. O-O {[%emt 0:00:06]} d5 {[%emt 0:04:08]} 8. cxd5 {[%emt 0:01:53]} exd5 {[%emt 0:00:48]} 9. d4 {[%emt 0:00:34]} b6 {[%emt 0:06:00]} 10. dxc5 {[%emt 0:04:31]} bxc5 {[%emt 0:00:05]} 11. Nc3 {[%emt 0:04:28]} Bb7 {[%emt 0:03:01]} 12. Rc1 {[%emt 0:04:10]} Rc8 {[%emt 0:05:22]} 13. Na4 {[%emt 0:02:55] A13: English Opening: 1...e6.} Nb8 {[%emt 0:04:11]} 14. Rc2 {[%emt 0:01:00]} Nbd7 {[%emt 0:06:55]} 15. Ba3 {[%emt 0:20:13]} Qa5 {[%emt 0:01:18]} 16. Qd2 {[%emt 0:02:25]} Qxd2 {[%emt 0:00:45]} 17. Rxd2 {[%emt 0:00:59]} (17. Nxd2 $5 Rc6 18. Rfc1 $11) 17... Nb6 {[%emt 0:05:37]} 18. Nb2 {[%emt 0:08:14]} Rc7 {[%emt 0:02:52]} 19. Rc2 {[%emt 0:02:22]} Rfc8 {[%emt 0:01:01]} 20. Rfc1 {[%emt 0:00:23]} a5 {[%emt 0:05:55]} 21. Nd1 {[%emt 0:02:48]} Ne4 {[%emt 0:05:34]} 22. Nc3 {[%emt 0:01:07]} Nxc3 {[%emt 0:03:07]} 23. Rxc3 {[%emt 0:02:22]} Kf8 {[%emt 0:01:03]} 24. Ne1 {[%emt 0:01:35]} c4 {[%emt 0:10:26]} 25. Bxe7+ {[%emt 0:00:30]} Kxe7 {[%emt 0:00:02]} 26. bxc4 {[%emt 0:01:55]} dxc4 {[%emt 0:00:47]} 27. Nf3 {[%emt 0:03:57]} Bd5 {[%emt 0:03:36]} 28. Nd4 {[%emt 0:01:30]} g6 {[%emt 0:04:45]} 29. Bf3 {[%emt 0:01:10]} Bxf3 {[%emt 0:01:01]} 30. Nxf3 {[%emt 0:00:37]} Nd5 {[%emt 0:00:50]} 31. Ra3 {[%emt 0:00:47]} Rc5 {[%emt 0:02:12]} 32. Kf1 {[%emt 0:01:36]} c3 {[%emt 0:00:08]} 33. Nd4 {[%emt 0:01:41]} c2 {[%emt 0:05:05]} 34. Ke2 {[%emt 0:06:26]} Nc3+ {[%emt 0:05:59]} 35. Kd3 {[%emt 0:03:54]} Nd1 {[%emt 0:01:56]} 36. Kd2 {[%emt 0:09:20]} Nb2 {[%emt 0:05:51]} 37. Rb3 {[%emt 0:00:57]} Nc4+ {[%emt 0:00:32]} 38. Kd3 {[%emt 0:00:43]} Ne5+ {[%emt 0:02:41]} 39. Kd2 {[%emt 0:00:51]} Ng4 {[%emt 0:01:50]} 40. Rxc2 {[%emt 0:01:52]} Nxf2 {[%emt 0:00:30]} 41. Rxc5 {[%emt 0:09:57]} Rxc5 {[%emt 0:04:49]} 42. Ra3 {[%emt 0:10:05]} Kf6 {[%emt 0:08:40]} 43. Ke2 {[%emt 0:03:44]} Ng4 {[%emt 0:00:27]} 44. h3 {[%emt 0:00:58]} Ne5 {[%emt 0:00:02]} 45. Kf2 {[%emt 0:02:56]} Nc4 {[%emt 0:02:01]} 46. Ra4 {[%emt 0:01:40]} Nb2 {[%emt 0:00:20]} 47. Ra3 {[%emt 0:00:32]} a4 {[%emt 0:00:30]} 48. Kf3 {[%emt 0:01:00]} (48. Ne2 $1 $11) 48... Ke5 {[%emt 0:01:46]} 49. Ne2 {[%emt 0:05:04]} Kd5 {[%emt 0:03:11]} (49... Rc4 $15) 50. Nc3+ {[%emt 0:00:00]} Ke6 {[%emt 0:06:13]} 51. g4 {[%emt 0:00:00]} h5 {[%emt 0:01:12]} 52. Ke4 {[%emt 0:00:06]} Rc4+ {[%emt 0:00:43]} 53. Kf3 {[%emt 0:00:07]} h4 {[%emt 0:01:35]} 54. Ke2 {[%emt 0:00:38]} Rb4 {[%emt 0:01:59]} 55. Nd1 {[%emt 0:01:25]} Nxd1 {[%emt 0:02:25]} 56. Kxd1 {[%emt 0:00:03]} Rb1+ {[%emt 0:00:11]} 57. Ke2 {[%emt 0:00:11]} Rh1 {[%emt 0:00:07]} 58. Rxa4 {[%emt 0:00:16]} Rxh3 {[%emt 0:01:14]} 59. Rf4 $2 {[%emt 0:00:40] [#]} (59. g5 $11 {and White stays safe.}) 59... g5 {[%emt 0:01:07]} (59... Rh2+ $1 $17 60. Kf3 Rxa2) 60. Rf5 {[%emt 0:00:10]} f6 {[%emt 0:00:13]} 61. Rb5 {[%emt 0:01:09]} Rg3 {[%emt 0:00:29]} 62. Rb4 {[%emt 0:00:29]} Rg2+ {[%emt 0:00:06]} 63. Kf3 {[%emt 0:00:17]} Rxa2 {[%emt 0:00:07]} 64. Rb8 {[%emt 0:00:15]} Kf7 {[%emt 0:00:37]} 65. Rh8 {[%emt 0:00:21]} Kg7 {[%emt 0:00:25]} 66. Rd8 {[%emt 0:00:42]} Rh2 {[%emt 0:00:12]} 67. Rd7+ {[%emt 0:00:21]} Kg6 {[%emt 0:00:14]} 68. Rd4 {[%emt 0:00:20]} Rh3+ {[%emt 0:00:12]} 69. Kf2 {[%emt 0:00:12]} Rg3 {[%emt 0:00:08]} 70. Rc4 {[%emt 0:00:09]} Kf7 {[%emt 0:00:13]} 71. Re4 {[%emt 0:01:08]} Kg6 {[%emt 0:00:33]} 72. Rd4 {[%emt 0:00:10]} Rh3 {[%emt 0:00:32]} 73. Re4 {[%emt 0:00:39]} Rh2+ {[%emt 0:00:09]} 74. Kf3 {[%emt 0:00:29]} Rb2 {[%emt 0:00:09]} 75. Re8 {[%emt 0:00:40]} Rb7 {[%emt 0:00:56]} 76. Rd8 {[%emt 0:00:44]} Re7 {[%emt 0:02:13]} 77. Rd6 {[%emt 0:00:20]} Kf7 {[%emt 0:01:14]} 78. Rc6 {[%emt 0:00:26]} Re6 {[%emt 0:00:52]} 79. Rc7+ {[%emt 0:00:07]} Ke8 {[%emt 0:00:12]} 80. Rh7 {[%emt 0:00:25]} Re7 {[%emt 0:00:08]} 81. Rh8+ {[%emt 0:00:53]} Kd7 {[%emt 0:00:05]} 82. Rf8 {[%emt 0:00:34]} Re6 {[%emt 0:00:26]} 83. Ra8 {[%emt 0:00:43]} Kd6 {[%emt 0:00:10]} 84. Ra5 {[%emt 0:00:11]} Re5 {[%emt 0:01:26]} 85. Ra6+ {[%emt 0:00:06]} Ke7 {[%emt 0:00:05]} 86. Rb6 {[%emt 0:00:08]} f5 {[%emt 0:00:17]} 87. gxf5 {[%emt 0:01:47]} Rxf5+ {[%emt 0:00:12]} 88. Kg4 {[%emt 0:00:23]} Re5 {[%emt 0:00:11]} 89. Rh6 {[%emt 0:00:24]} Kf7 {[%emt 0:01:19]} 90. Rb6 {[%emt 0:00:51]} Kg7 {[%emt 0:00:46]} 91. Rc6 {[%emt 0:00:10]} Kf7 {[%emt 0:00:47]} 92. Rb6 {[%emt 0:00:04]} Re6 {[%emt 0:00:11]} 93. Rb5 {[%emt 0:00:24]} Rg6 $11 {[%emt 0:02:00]} 94. Ra5 {[%emt 0:00:21]} Rg8 {[%emt 0:00:46]} 95. Rb5 {[%emt 0:00:40]} Kf6 {[%emt 0:00:28]} 96. Rf5+ {[%emt 0:00:18]} Ke6 {[%emt 0:00:08]} 97. Rb5 {[%emt 0:00:06]} Kf6 {[%emt 0:00:13]} 1/2-1/2